bitfinex/quotes_ETHUSD_20230904
["timestamp","ask_amount","ask_price","bid_price","bid_amount"]
[1693847947523,15.79386433,1633.3,1633.0,11.75539805]
[1693847947723,15.79386433,1633.3,1633.0,11.11747402]
[1693847952077,14.38771433,1633.3,1633.0,11.11747402]
[1693847956887,14.38771433,1633.3,1633.0,11.75539805]
[1693847962681,14.38771433,1633.3,1633.0,12.71225309]
[1693847962875,14.38771433,1633.3,1633.1,0.63792403]
[1693847963263,14.38771433,1633.3,1633.2,1.7310576]
[1693847963465,17.04794176,1633.3,1633.1,0.63792403]
[1693847965691,14.90546743,1633.3,1633.1,0.63792403]
[1693847966391,14.90546743,1633.3,1633.2,1.7010576]
[1693847966558,8.78279743,1633.3,1633.2,1.7010576]
[1693847966758,8.78279743,1633.3,1633.1,0.63792403]
[1693847967361,14.90536743,1633.3,1633.1,0.63792403]
[1693847969404,14.90536743,1633.3,1633.1,1.59477907]
[1693847972990,21.02793743,1633.3,1633.1,1.59477907]
[1693847974215,2.10279374,1633.2,1632.9,1.69477907]
[1693847974417,1.406,1633.0,1632.9,0.1]
[1693847974616,19.77707,1633.0,1632.9,0.1]
[1693847975527,20.833925,1633.0,1632.9,0.1]
[1693847975694,21.70942576,1633.0,1632.9,0.1]
[1693847976095,21.70942576,1633.0,1632.9,1.66075305]
[1693847977027,23.11542576,1633.0,1632.9,1.66075305]
[1693847977608,23.11542576,1633.0,1632.9,0.1]
[1693847978201,2.04316331,1632.8,1632.6,0.73792403]
[1693847978421,19.78046,1632.7,1632.6,0.73792403]
[1693847978626,22.44068743,1632.7,1632.6,0.73792403]
[1693847978826,22.44068743,1632.7,1632.6,0.1]
[1693847981498,22.44068743,1632.7,1632.6,1.66621578]
[1693847982535,12.24964,1632.7,1632.6,1.66621578]
[1693847983548,6.12482,1632.7,1632.6,2.30413981]
[1693847984609,12.24964,1632.7,1632.6,1.66621578]
[1693847984814,12.24948,1632.8,1632.6,4.73323004]
[1693847985053,6.12468,1632.8,1632.6,5.41452961]
[1693847985355,6.12482,1632.7,1632.6,5.41452961]
[1693847985758,14.96837,1632.8,1632.6,6.05245364]
[1693847985936,14.96837,1632.8,1632.6,5.37115407]
[1693847986954,14.96837,1632.8,1632.6,4.73323004]
[1693847987546,14.96837,1632.8,1632.6,1.66621578]
[1693847987753,22.49911,1632.8,1632.6,1.66621578]
[1693847994135,16.37437,1632.8,1632.6,1.66621578]
[1693847994331,10.24968,1632.8,1632.6,1.66621578]
[1693847994866,8.84368,1632.8,1632.6,1.66621578]
[1693847996536,8.84368,1632.8,1632.6,2.30413981]
[1693847999049,14.96842,1632.8,1632.6,2.30413981]
[1693848000335,17.218277,1632.8,1632.6,1.66621578]
[1693848001976,13.65564,1632.7,1632.6,1.66621578]
[1693848002379,12.24964,1632.7,1632.6,1.66621578]
[1693848009781,2.719,1632.8,1632.6,1.66621578]
[1693848009969,2.719,1632.8,1632.6,7.79140578]
[1693848011384,8.84346,1632.8,1632.6,7.79140578]
[1693848012445,7.53014,1632.9,1632.6,18.58324819]
[1693848012647,17.03427088,1633.0,1632.6,19.22117222]
[1693848014889,17.03427088,1633.0,1632.6,20.17802726]
[1693848016264,17.03427088,1633.0,1632.6,18.57838911]
[1693848016681,17.03427088,1633.0,1632.7,0.63792403]
[1693848017178,17.03427088,1633.0,1632.8,1.56647676]
[1693848019651,17.03427088,1633.0,1632.8,2.20440079]
[1693848019856,17.03427088,1633.0,1632.8,1.56647676]
[1693848021291,14.89137,1633.0,1632.8,1.56647676]
[1693848032294,14.89137,1633.0,1632.8,1.1519471]
[1693848040109,24.77763743,1633.0,1632.8,1.1519471]
[1693848040308,1.406,1632.9,1632.8,1.1519471]
[1693848040479,19.77821,1632.9,1632.8,1.1519471]
[1693848053049,1.406,1632.9,1632.8,1.1519471]
[1693848053240,6.12407,1632.9,1632.8,1.1519471]
[1693848059927,12.24814,1632.9,1632.8,1.1519471]
[1693848062345,14.70459009,1632.9,1632.8,1.1519471]
[1693848062856,14.70459009,1632.9,1632.6,6.76297403]
[1693848063052,12.24814,1632.9,1632.8,1.344475]
[1693848063360,12.24814,1632.9,1632.6,9.82998829]
[1693848063559,18.37221,1632.9,1632.6,0.63792403]
[1693848064838,18.37221,1632.9,1632.5,2.07976567]
[1693848065034,18.37221,1632.9,1632.5,4.18992489]
[1693848065234,1.837221,1632.8,1632.5,4.18992489]
[1693848065444,6.12482,1632.7,1632.5,4.18992489]
[1693848065857,8.74112,1632.7,1632.5,4.18992489]
[1693848066051,8.74112,1632.7,1632.5,10.31549489]
[1693848067468,8.74112,1632.7,1632.5,4.18992489]
[1693848069665,8.74112,1632.7,1632.5,10.31544489]
[1693848070367,8.74112,1632.7,1632.6,1.34521815]
[1693848070569,10.4114241,1632.7,1632.6,1.34521815]
[1693848072359,8.74112,1632.7,1632.6,1.34521815]
[1693848073061,2.6163,1632.7,1632.6,1.34521815]
[1693848073968,12.24934,1632.8,1632.6,1.34521815]
[1693848074271,14.88814,1632.8,1632.6,1.34521815]
[1693848076834,8.76347,1632.8,1632.6,1.34521815]
[1693848080375,2.14290088,1633.0,1632.7,4.0238693]
[1693848080580,2.14290088,1633.0,1632.8,20.37116726]
[1693848080763,2.14290088,1633.0,1632.9,3.06701426]
[1693848080952,2.14290088,1633.0,1632.9,22.07782955]
[1693848081155,8.66629,1633.3,1632.9,22.07782955]
[1693848082984,2.5436,1633.3,1632.9,22.07782955]
[1693848083286,2.5436,1633.3,1633.1,6.12332]
[1693848084385,8.66628,1633.3,1633.1,6.12332]
[1693848084577,8.66619,1633.3,1633.1,6.12332]
[1693848085489,8.66621,1633.3,1633.1,6.12332]
[1693848086495,8.66621,1633.3,1633.2,1.35710768]
[1693848086793,8.66621,1633.3,1633.1,6.12332]
[1693848086954,6.12261,1633.3,1633.1,9.19033426]
[1693848087154,2.1423762,1633.4,1633.3,6.12257]
[1693848087372,2.1423762,1633.4,1633.3,15.31215426]
[1693848087567,2.1423762,1633.4,1633.3,21.43472426]
[1693848087758,14.26902,1633.7,1633.3,21.43472426]
[1693848087759,12.2425,1633.7,1633.3,21.43472426]
[1693848087977,12.2425,1633.7,1633.4,3.06701426]
[1693848088177,12.2425,1633.7,1633.4,9.18900426]
[1693848090068,6.12111,1633.7,1633.4,11.33241869]
[1693848090273,6.12111,1633.7,1633.4,17.45460869]
[1693848091279,10.28554072,1633.9,1633.4,24.98279869]
[1693848092378,8.14382,1633.9,1633.4,24.98279869]
[1693848093988,6.11935,1634.2,1633.6,1.406]
[1693848094188,6.11924,1634.2,1633.7,21.42960426]
[1693848094502,8.08384,1634.2,1633.8,2.14296043]
[1693848094798,8.08384,1634.2,1633.9,15.30758426]
[1693848094998,15.60904,1634.2,1633.8,6.12042]
[1693848095302,24.766217,1634.2,1633.8,3.06701426]
[1693848095735,24.766217,1634.2,1633.6,9.12119]
[1693848095892,24.766217,1634.2,1633.7,3.06701426]
[1693848096087,24.766217,1634.2,1633.7,9.18808426]
[1693848096721,24.766217,1634.2,1633.7,15.30915426]
[1693848096914,2.3766217,1634.1,1633.7,15.30915426]
[1693848097121,6.12002,1634.0,1633.7,15.30915426]
[1693848097414,14.85784,1634.0,1633.7,15.30915426]
[1693848097607,8.73782,1634.0,1633.7,15.30915426]
[1693848098327,10.86342,1634.0,1633.7,15.30915426]
[1693848101594,10.86342,1634.0,1633.8,1.35507386]
[1693848101793,16.98337,1634.0,1633.8,1.35507386]
[1693848102290,19.67194717,1634.0,1633.8,1.35507386]
[1693848102489,19.67187717,1634.0,1633.8,1.35507386]
[1693848102894,13.55192717,1634.0,1633.8,7.47565386]
[1693848105705,10.86335,1634.0,1633.8,7.47565386]
[1693848107116,16.9833,1634.0,1633.8,1.35507386]
[1693848110397,10.86335,1634.0,1633.8,1.35507386]
[1693848110593,16.9833,1634.0,1633.8,1.35507386]
[1693848114037,8.73775,1634.0,1633.8,10.54276812]
[1693848118504,10.97608,1634.0,1633.8,1.35507386]
[1693848118730,24.62198,1634.0,1633.8,1.35507386]
[1693848119114,24.62198,1634.0,1633.5,6.12167]
[1693848119355,1.406,1633.8,1633.6,3.06701426]
[1693848119654,1.406,1633.8,1633.6,9.18841426]
[1693848119858,7.5268,1633.8,1633.6,9.18841426]
[1693848120057,13.6476,1633.8,1633.6,3.06701426]
[1693848120555,13.6476,1633.8,1633.6,9.18841426]
[1693848121062,13.6476,1633.8,1633.6,3.06701426]
[1693848122142,21.953032,1633.8,1633.4,15.2441]
[1693848122327,2.6884,1633.7,1633.5,3.06701426]
[1693848122533,8.8096,1633.7,1633.5,9.18870426]
[1693848123058,8.8096,1633.7,1633.5,15.31052426]
[1693848123648,2.6884,1633.7,1633.5,15.31052426]
[1693848125014,8.8095,1633.7,1633.5,15.31052426]
[1693848125215,8.8095,1633.7,1633.5,15.94912955]
[1693848126612,8.8095,1633.7,1633.5,16.90598459]
[1693848126820,2.6884,1633.7,1633.5,16.90598459]
[1693848127213,8.80948,1633.7,1633.5,15.94912955]
[1693848129418,8.80948,1633.7,1633.5,16.90598459]
[1693848129619,2.6884,1633.7,1633.6,0.63860529]
[1693848129820,2.6884,1633.7,1633.6,6.76004529]
[1693848131345,2.6884,1633.7,1633.6,9.0866318]
[1693848133331,2.6884,1633.7,1633.6,10.04348684]
[1693848133663,12.24025,1634.0,1633.6,27.37773766]
[1693848133836,2.64,1633.9,1633.7,3.70453844]
[1693848134157,2.64,1633.9,1633.7,15.94627844]
[1693848134924,8.76033,1633.9,1633.7,15.94627844]
[1693848137455,8.76033,1633.9,1633.7,15.30875426]
[1693848137959,8.76033,1633.9,1633.7,9.18774426]
[1693848138958,2.64,1633.9,1633.7,9.18774426]
[1693848139158,2.64,1633.9,1633.7,17.40243994]
[1693848139461,8.76033,1633.9,1633.7,17.40243994]
[1693848142132,8.76033,1633.9,1633.7,11.28136994]
[1693848142625,8.76033,1633.9,1633.7,9.18774426]
[1693848145032,14.88066,1633.9,1633.6,14.56901651]
[1693848145232,14.88066,1633.9,1633.6,11.51480077]
[1693848146934,15.52474508,1633.9,1633.6,11.51480077]
[1693848148854,21.64507508,1633.9,1633.6,2.32658651]
[1693848149069,2.16450751,1633.8,1633.6,2.32658651]
[1693848149270,12.24214,1633.7,1633.6,2.32658651]
[1693848149439,12.24214,1633.7,1633.4,16.38289197]
[1693848149772,12.24214,1633.7,1633.5,6.12171]
[1693848149773,8.18027,1633.7,1633.5,6.12171]
[1693848150067,8.18027,1633.7,1633.5,8.36202318]
[1693848150431,2.0592,1633.7,1633.5,8.36202318]
[1693848150775,10.16638,1633.9,1633.6,0.83620232]
[1693848150971,2.0478,1633.8,1633.6,6.12108]
[1693848151162,8.16854,1633.8,1633.6,6.12108]
[1693848157882,9.57454,1633.8,1633.5,2.24031318]
[1693848158111,21.81598,1633.8,1633.5,2.24031318]
[1693848158285,2.181598,1633.7,1633.5,2.24031318]
[1693848158583,6.12144,1633.6,1633.5,2.24031318]
[1693848159487,2.6394,1633.6,1633.5,8.36213318]
[1693848160787,8.76084,1633.6,1633.5,2.24031318]
[1693848163104,2.6394,1633.6,1633.5,8.36213318]
[1693848163288,8.76084,1633.6,1633.5,2.24031318]
[1693848166399,8.76084,1633.6,1633.5,8.36213318]
[1693848166596,2.6394,1633.6,1633.5,8.36213318]
[1693848166816,2.0478,1633.8,1633.5,25.17133854]
[1693848167101,4.5999,1633.8,1633.5,25.17133854]
[1693848168792,2.5521,1633.8,1633.5,25.17133854]
[1693848168970,2.5521,1633.8,1633.5,25.80886272]
[1693848169168,2.5521,1633.8,1633.7,6.12107]
[1693848176427,2.5521,1633.8,1633.7,8.38097924]
[1693848177728,8.6728,1633.8,1633.7,2.25990924]
[1693848178240,8.6728,1633.8,1633.6,12.24239]
[1693848178536,10.7158,1633.8,1633.6,12.24239]
[1693848182336,10.7158,1633.8,1633.6,14.38550043]
[1693848190851,2.5521,1633.8,1633.6,17.45251469]
[1693848191554,2.5521,1633.8,1633.7,2.29007382]
[1693848191723,2.5521,1633.8,1633.7,8.41114382]
[1693848191922,2.5521,1633.8,1633.7,6.12107]
[1693848197531,2.5521,1633.8,1633.6,11.81037101]
[1693848197836,8.6728,1633.8,1633.6,17.93166101]
[1693848202259,8.6728,1633.8,1633.6,17.45250469]
[1693848202557,8.6728,1633.8,1633.6,15.30939426]
[1693848203367,14.7935,1633.8,1633.5,6.75922418]
[1693848203535,22.3202,1633.8,1633.4,1.13894197]
[1693848203732,6.12144,1633.6,1633.4,10.32813623]
[1693848204058,6.12144,1633.6,1633.4,9.69061205]
[1693848204259,8.71124,1633.6,1633.4,10.32813623]
[1693848204585,8.71124,1633.6,1633.4,12.46164823]
[1693848204730,8.71124,1633.6,1633.4,18.58383823]
[1693848206369,8.71124,1633.6,1633.5,2.30185001]
[1693848209875,2.5898,1633.6,1633.5,8.42367001]
[1693848212279,2.577,1633.8,1633.5,24.37184845]
[1693848212462,2.577,1633.8,1633.7,12.24214]
[1693848214085,2.577,1633.8,1633.7,6.12107]
[1693848217695,8.6977,1633.8,1633.7,6.12107]
[1693848217993,14.8184,1633.8,1633.5,9.06109419]
[1693848218209,18.654784,1633.8,1633.5,11.49058427]
[1693848220901,24.775484,1633.8,1633.5,5.36886427]
[1693848221299,24.01356908,1633.8,1633.5,2.30185001]
[1693848221630,1.406,1633.6,1633.5,2.30185001]
[1693848221905,19.77032,1633.6,1633.5,2.30185001]
[1693848222114,25.15200551,1633.6,1633.5,2.30185001]
[1693848222320,25.15200551,1633.6,1633.5,1.85830854]
[1693848222812,25.15200551,1633.6,1633.0,6.13478758]
[1693848222993,25.15200551,1633.6,1633.1,3.06701426]
[1693848222994,19.77281,1633.4,1633.1,3.06701426]
[1693848223316,21.951211,1633.4,1633.1,9.19032426]
[1693848223517,2.5737,1633.3,1633.1,9.19032426]
[1693848223723,8.69655,1633.3,1633.1,9.19032426]
[1693848224512,14.8194,1633.3,1633.1,9.19032426]
[1693848224713,8.69655,1633.3,1633.1,9.19032426]
[1693848228918,14.8194,1633.3,1633.1,3.06701426]
[1693848229220,14.8194,1633.3,1633.1,9.19024426]
[1693848229619,8.69655,1633.3,1633.1,9.19024426]
[1693848229995,8.69655,1633.3,1633.2,1.63763467]
[1693848230622,8.69655,1633.3,1633.1,9.19024426]
[1693848232293,8.69655,1633.3,1633.1,9.82769041]
[1693848232492,14.8194,1633.3,1633.1,9.82769041]
[1693848232888,14.8194,1633.3,1633.1,6.76067615]
[1693848233726,14.8194,1633.3,1633.1,6.12323]
[1693848234317,16.8505,1633.3,1633.1,6.12323]
[1693848236430,16.8505,1633.3,1633.2,1.64285467]
[1693848236831,16.8505,1633.3,1633.1,6.12323]
[1693848238612,10.72765,1633.3,1633.1,6.12323]
[1693848243634,10.72765,1633.3,1633.1,12.24655]
[1693848245905,12.24323,1633.6,1633.2,3.06701426]
[1693848246232,12.24323,1633.6,1633.3,12.24498]
[1693848246233,8.73189,1633.6,1633.3,12.24498]
[1693848246432,8.73189,1633.6,1633.3,15.31199426]
[1693848246733,16.25949,1633.6,1633.3,15.31199426]
[1693848247609,14.85349,1633.6,1633.3,15.31199426]
[1693848248937,2.6103,1633.6,1633.4,3.06701426]
[1693848249255,6.12143,1633.7,1633.5,6.12182]
[1693848249436,6.12143,1633.7,1633.5,9.18883426]
[1693848251537,6.12143,1633.7,1633.6,1.69460163]
[1693848253275,19.76985,1633.7,1633.6,1.69460163]
[1693848253470,22.638276,1633.7,1633.3,12.24473]
[1693848253656,6.12182,1633.5,1633.3,9.18934426]
[1693848253855,12.24364,1633.5,1633.3,9.18934426]
[1693848254053,12.24364,1633.5,1633.2,6.76015615]
[1693848254232,8.79809,1633.4,1633.2,15.31254426]
[1693848254432,8.79809,1633.4,1633.2,15.94999041]
[1693848254829,8.79809,1633.4,1633.2,16.43177879]
[1693848255067,8.79809,1633.4,1633.2,15.79433264]
[1693848256648,14.92038,1633.4,1633.2,9.67151264]
[1693848258861,8.79809,1633.4,1633.2,9.67151264]
[1693848263576,10.94469,1633.4,1633.2,9.67151264]
[1693848263776,19.385742,1633.4,1633.2,0.48178838]
[1693848263939,19.385642,1633.4,1633.1,0.63744615]
[1693848264373,25.507832,1633.4,1633.1,0.63744615]
[1693848264584,19.385642,1633.4,1633.1,0.63744615]
[1693848264769,1.9385642,1633.3,1633.1,0.63744615]
[1693848265090,1.9385642,1633.3,1633.0,2.04765055]
[1693848265091,20.3070342,1633.3,1633.0,2.04765055]
[1693848265253,20.3070342,1633.3,1633.0,1.4102044]
[1693848265254,1.406,1633.1,1633.0,1.4102044]
[1693848265448,19.77596,1633.1,1632.8,1.59368021]
[1693848265788,1.28109573,1633.0,1632.8,1.59368021]
[1693848266083,7.40498573,1633.0,1632.8,7.71810021]
[1693848266284,7.52939,1633.1,1632.8,13.84254021]
[1693848266472,7.52939,1633.1,1632.9,1.39075684]
[1693848266806,2.7208,1633.0,1632.9,7.51482684]
[1693848268697,8.84449,1633.0,1632.9,1.39075684]
[1693848270166,14.96818,1633.0,1632.9,1.39075684]
[1693848270371,17.420577,1633.0,1632.9,1.39075684]
[1693848270783,24.950267,1633.0,1632.9,1.39075684]
[1693848271375,24.950267,1633.0,1632.7,6.76216615]
[1693848272196,24.950267,1633.0,1632.7,0.63744615]
[1693848272476,24.950267,1633.0,1632.7,6.76224615]
[1693848272682,1.14756073,1632.9,1632.7,6.76224615]
[1693848272908,7.27173073,1632.9,1632.7,6.76224615]
[1693848273113,13.39590073,1632.9,1632.7,6.76224615]
[1693848274917,13.39590073,1632.9,1632.6,13.84372021]
[1693848275111,8.72519,1632.8,1632.6,16.91073447]
[1693848275711,2.6007,1632.8,1632.6,16.91073447]
[1693848277118,8.72515,1632.8,1632.6,15.95450041]
[1693848277492,8.72515,1632.8,1632.6,12.88748615]
[1693848278016,2.6007,1632.8,1632.6,12.88748615]
[1693848278204,8.72517,1632.8,1632.6,6.76243615]
[1693848278412,8.72517,1632.8,1632.6,12.88762615]
[1693848279134,2.6007,1632.8,1632.6,12.88762615]
[1693848279487,8.72516,1632.8,1632.6,12.88762615]
[1693848279741,10.555953,1632.8,1632.6,12.25018]
[1693848280238,10.555953,1632.8,1632.6,6.12499]
[1693848280434,16.680413,1632.8,1632.5,13.84444021]
[1693848280715,11.961933,1632.8,1632.5,12.88838615]
[1693848281610,11.961933,1632.8,1632.6,1.40476856]
[1693848281802,11.961933,1632.8,1632.6,7.52984856]
[1693848281803,10.555933,1632.8,1632.6,7.52984856]
[1693848282190,2.6007,1632.8,1632.6,13.65503856]
[1693848282416,6.12407,1632.9,1632.6,23.48468897]
[1693848283123,14.79814,1633.0,1632.6,23.48468897]
[1693848283492,14.79814,1633.0,1632.7,3.06701426]
[1693848283692,14.79814,1633.0,1632.7,9.19159426]
[1693848283895,2.5503,1633.0,1632.7,17.66482216]
[1693848284119,2.5503,1633.0,1632.7,24.42708831]
[1693848284319,2.14263851,1633.2,1632.7,24.42708831]
[1693848284528,8.26558851,1633.2,1632.7,24.42708831]
[1693848284724,8.26558851,1633.2,1632.8,2.44270883]
[1693848284725,14.38853851,1633.2,1632.8,2.44270883]
[1693848284902,14.38853851,1633.2,1632.9,15.31499426]
[1693848285104,12.2459,1633.2,1632.9,15.31499426]
[1693848285298,12.2459,1633.2,1632.9,3.06701426]
[1693848285516,12.2459,1633.2,1632.8,12.24849]
[1693848285517,2.5592,1633.1,1632.8,12.24849]
[1693848285720,6.12369,1633.0,1632.8,15.31550426]
[1693848287516,6.12369,1633.0,1632.8,9.19122426]
[1693848288095,14.537085,1633.0,1632.7,6.76207615]
[1693848288307,14.537085,1633.0,1632.7,12.88657615]
[1693848288930,2.577,1632.9,1632.7,12.88657615]
[1693848289127,8.70109,1632.9,1632.7,12.88657615]
[1693848289309,8.70109,1632.9,1632.7,12.24913]
[1693848289697,2.577,1632.9,1632.7,12.24913]
[1693848289900,9.49664,1633.1,1632.7,24.21568029]
[1693848289901,8.09064,1633.1,1632.7,24.21568029]
[1693848290096,1.9672,1633.1,1632.7,24.21568029]
[1693848290402,14.96188,1633.2,1632.8,3.06701426]
[1693848290614,14.96188,1633.2,1632.9,12.24806]
[1693848290821,14.96188,1633.2,1632.9,15.31507426]
[1693848294233,8.83869,1633.2,1632.9,15.31507426]
[1693848294424,8.83869,1633.2,1632.9,17.45898969]
[1693848294822,14.96188,1633.2,1632.9,17.45898969]
[1693848296651,14.96188,1633.2,1633.0,1.43044375]
[1693848303356,22.49107,1633.2,1633.0,1.43044375]
[1693848303555,1.406,1633.1,1633.0,1.43044375]
[1693848303758,15.901747,1633.1,1632.8,6.76152615]
[1693848303916,2.7118,1633.0,1632.8,9.82854041]
[1693848304111,8.83561,1633.0,1632.8,9.82854041]
[1693848307316,8.83561,1633.0,1632.8,0.63744615]
[1693848307317,14.95942,1633.0,1632.8,0.63744615]
[1693848309431,14.95942,1633.0,1632.8,1.59368021]
[1693848309616,1.495942,1632.9,1632.8,1.59368021]
[1693848309817,7.620012,1632.9,1632.8,1.59368021]
[1693848310018,13.744082,1632.9,1632.8,0.63744615]
[1693848310260,21.274152,1632.9,1632.7,1.59368021]
[1693848310951,23.352952,1632.9,1632.7,1.59368021]
[1693848311162,23.352952,1632.9,1632.7,0.63744615]
[1693848311163,20.16679293,1632.8,1632.7,0.63744615]
[1693848311525,22.73739293,1632.8,1632.7,0.63744615]
[1693848312154,16.61295293,1632.8,1632.7,0.63744615]
[1693848313139,18.01895293,1632.8,1632.7,0.63744615]
[1693848313484,24.14339293,1632.8,1632.6,1.59368021]
[1693848313774,15.904747,1632.7,1632.6,1.59368021]
[1693848314871,9.779927,1632.7,1632.6,1.59368021]
[1693848315381,9.779927,1632.7,1632.6,0.63744615]
[1693848315994,22.029567,1632.7,1632.6,0.63744615]
[1693848316877,15.904747,1632.7,1632.6,0.63744615]
[1693848318483,15.904747,1632.7,1632.5,7.71921021]
[1693848318684,1.495942,1632.6,1632.5,7.71921021]
[1693848318881,17.978347,1632.7,1632.5,7.71921021]
[1693848318882,3.4796,1632.7,1632.5,7.71921021]
[1693848319191,8.69514,1632.8,1632.5,19.97035021]
[1693848319192,2.5706,1632.8,1632.5,19.97035021]
[1693848320491,2.5706,1632.8,1632.5,19.01411615]
[1693848321966,2.5706,1632.8,1632.5,22.08113041]
[1693848322294,2.5706,1632.8,1632.6,0.63744615]
[1693848322491,2.5706,1632.8,1632.7,6.12482]
[1693848322697,2.14276968,1633.1,1632.7,21.44147426]
[1693848322993,4.83166968,1633.1,1632.7,21.44147426]
[1693848323194,4.83166968,1633.1,1632.7,22.07892041]
[1693848323506,10.95499968,1633.1,1632.7,15.95410041]
[1693848323694,17.07832968,1633.1,1632.7,15.95410041]
[1693848323894,19.24492968,1633.1,1632.7,15.95410041]
[1693848324697,13.12159968,1633.1,1632.7,15.95410041]
[1693848324898,13.12159968,1633.1,1632.7,22.07892041]
[1693848325491,13.12159968,1633.1,1632.7,21.44147426]
[1693848325899,13.12159968,1633.1,1632.7,15.31665426]
[1693848326199,13.12159968,1633.1,1632.7,22.07892041]
[1693848326496,13.12159968,1633.1,1632.8,13.70189361]
[1693848328018,19.24491968,1633.1,1632.8,7.57749361]
[1693848330028,25.36823968,1633.1,1632.8,7.57749361]
[1693848330328,1.406,1633.0,1632.8,1.45338361]
[1693848330527,12.24814,1632.9,1632.8,1.45338361]
[1693848330825,16.753842,1632.9,1632.8,1.45338361]
[1693848331121,16.753842,1632.9,1632.6,6.76250615]
[1693848331327,18.926742,1632.9,1632.6,6.76250615]
[1693848332091,18.926742,1632.9,1632.7,0.00328388]
[1693848334525,26.456812,1632.9,1632.7,0.00328388]
[1693848334732,8.7701212,1632.8,1632.7,0.00328388]
[1693848335106,8.7701212,1632.8,1632.6,0.63744615]
[1693848335311,2.7204,1632.7,1632.6,6.12505]
[1693848335623,2.7204,1632.7,1632.6,6.76249615]
[1693848336131,2.7204,1632.7,1632.6,6.76580358]
[1693848336337,2.7204,1632.7,1632.6,6.12835743]
[1693848337338,2.7204,1632.7,1632.6,0.00330743]
[1693848337543,9.729704,1632.7,1632.6,0.00330743]
[1693848338839,3.604884,1632.7,1632.6,0.00330743]
[1693848339036,2.7204,1632.7,1632.6,12.25368743]
[1693848339340,2.7204,1632.7,1632.6,12.89113358]
[1693848341538,2.7204,1632.7,1632.6,15.05142222]
[1693848341743,2.7204,1632.7,1632.6,2.80104222]
[1693848342534,8.84522,1632.7,1632.6,2.80104222]
[1693848348659,2.7204,1632.7,1632.6,9.91451485]
[1693848348862,2.1729,1632.9,1632.6,19.42550702]
[1693848349068,2.1729,1632.9,1632.7,0.63820826]
[1693848349228,2.1729,1632.9,1632.8,6.12444]
[1693848349427,8.90482,1633.0,1632.8,6.12444]
[1693848349727,10.95982,1633.0,1632.8,6.12444]
[1693848349966,17.08367,1633.0,1632.8,6.12444]
[1693848350168,17.08367,1633.0,1632.9,0.00328059]
[1693848350740,25.88310597,1633.0,1632.9,0.00328059]
[1693848350960,27.28910597,1633.0,1632.9,0.00328059]
[1693848351169,27.28910597,1633.0,1632.6,16.00489096]
[1693848351343,27.28910597,1633.0,1632.6,9.87980096]
[1693848352165,2.7811,1633.0,1632.8,6.12444]
[1693848352330,8.90483,1633.0,1632.8,3.06701426]
[1693848352730,8.90483,1633.0,1632.8,9.19144426]
[1693848354134,8.90483,1633.0,1632.9,0.00328059]
[1693848355248,6.12373,1633.0,1632.9,0.00328059]
[1693848356069,10.94326968,1633.1,1632.9,7.04682308]
[1693848356670,10.94326968,1633.1,1633.0,2.16800506]
[1693848357228,10.94326968,1633.1,1633.0,2.17127671]
[1693848361994,17.06676968,1633.1,1633.0,2.17127671]
[1693848366102,14.924,1633.1,1633.0,2.17127671]
[1693848369977,22.4535,1633.1,1633.0,2.17127671]
[1693848370183,25.55936479,1633.1,1633.0,2.17127671]
[1693848371668,25.55936479,1633.1,1633.0,1.03172601]
[1693848376714,22.4535,1633.1,1633.0,1.03172601]
[1693848376889,8.8005,1633.1,1633.0,1.03172601]
[1693848377508,14.924,1633.1,1633.0,1.03172601]
[1693848381722,1.406,1633.2,1633.0,1.03172601]
[1693848381898,6.12311,1633.2,1633.0,7.15541601]
[1693848382094,6.12311,1633.2,1633.0,7.87095761]
[1693848382423,10.79365735,1633.3,1633.0,13.99464761]
[1693848382578,4.67100735,1633.3,1633.0,20.11833761]
[1693848382783,10.79367735,1633.3,1633.0,13.99464761]
[1693848383217,2.5285,1633.3,1633.0,13.99464761]
[1693848383382,8.65109,1633.3,1633.0,17.06166187]
[1693848388723,2.5285,1633.3,1633.0,17.06166187]
[1693848388930,2.5285,1633.3,1633.1,1.70616619]
[1693848389125,2.5285,1633.3,1633.1,7.83248889]
[1693848389629,2.5285,1633.3,1633.2,1.0279158]
[1693848390195,2.5285,1633.3,1633.1,12.2493827]
[1693848394733,2.5285,1633.3,1633.1,18.3727027]
[1693848394898,2.5285,1633.3,1633.1,20.58822856]
[1693848395303,2.60059755,1633.4,1633.1,20.58822856]
[1693848395503,5.33079755,1633.4,1633.1,20.58822856]
[1693848395811,5.33079755,1633.4,1633.1,23.65524282]
[1693848396151,2.14224507,1633.5,1633.3,12.24514]
[1693848396527,8.26409507,1633.5,1633.3,12.24514]
[1693848397032,8.26409507,1633.5,1633.3,6.12257]
[1693848397234,8.26409507,1633.5,1633.4,0.00323588]
[1693848398333,14.38594507,1633.5,1633.4,0.00323588]
[1693848398944,17.07982539,1633.5,1633.4,0.00323588]
[1693848399239,23.20167539,1633.5,1633.2,6.12272]
[1693848399434,2.6923,1633.4,1633.2,6.12272]
[1693848399743,8.81475,1633.4,1633.2,6.12272]
[1693848400036,17.0585,1633.4,1633.2,6.12272]
[1693848401117,17.0585,1633.4,1633.3,0.00324482]
[1693848401313,17.0585,1633.4,1633.3,1.03026806]
[1693848405148,14.38616507,1633.5,1633.3,1.03026806]
[1693848405328,14.38616507,1633.5,1633.3,2.35785487]
[1693848405529,16.36136507,1633.5,1633.3,2.35785487]
[1693848408853,16.36136507,1633.5,1633.3,1.03026806]
[1693848409715,14.21912,1633.5,1633.3,1.03026806]
[1693848409931,1.406,1633.4,1633.3,1.03026806]
[1693848410126,20.34690592,1633.4,1633.3,1.02702324]
[1693848410347,22.95270592,1633.4,1633.3,1.02702324]
[1693848410535,22.95270592,1633.4,1632.7,0.63820826]
[1693848410536,30.82158785,1633.4,1632.7,0.63820826]
[1693848411059,2.131,1633.3,1632.8,3.06701426]
[1693848411258,2.131,1633.3,1632.8,4.45238657]
[1693848411259,21.91793851,1633.2,1632.8,4.45238657]
[1693848412123,21.91793851,1633.2,1632.8,10.57682657]
[1693848412750,6.12369,1633.0,1632.8,10.57682657]
[1693848413965,7.50442934,1633.0,1632.8,7.50981231]
[1693848414164,1.406,1632.9,1632.8,1.38537231]
[1693848414339,19.77821,1632.9,1632.8,1.38537231]
[1693848414978,21.92124208,1632.9,1632.8,1.38537231]
[1693848415275,25.00440922,1632.9,1632.8,1.38537231]